fUST/lending_fUST_20250802
["ID","MTS","AMOUNT","RATE_DAILY","PERIOD"]
[376641374,1754068239449,-460.0,0.00021917,10]
[376641375,1754068239458,-30.07145226,0.00021917,10]
[376641376,1754068239483,-429.92854774,0.00021917,10]
[376641377,1754068239492,-460.0,0.00021917,10]
[376641378,1754068239502,-439.1386516,0.00021917,10]
[376641379,1754068239511,-460.0,0.00021917,10]
[376641380,1754068239521,-133.32275024,0.00021917,10]
[376641381,1754068239534,-326.67724976,0.00021917,10]
[376641382,1754068239543,-465.49789933,0.00021917,10]
[376641383,1754068239555,-460.0,0.00021917,10]
[376641384,1754068239565,-460.0,0.00021917,10]
[376641385,1754068239575,-460.0,0.00021917,10]
[376641386,1754068239585,-460.0,0.00021917,10]
[376641387,1754068239595,-462.99773497,0.00021917,10]
[376641388,1754068239604,-460.0,0.00021917,10]
[376641389,1754068239614,-460.0,0.00021917,10]
[376641391,1754068239624,-460.0,0.00021917,10]
[376641393,1754068239634,-460.0,0.00021917,10]
[376641395,1754068239644,-460.0,0.00021917,10]
[376641397,1754068239654,-460.0,0.00021917,10]
[376641398,1754068239664,-460.0,0.00021917,10]
[376641400,1754068239673,-460.0,0.00021917,10]
[376641401,1754068239682,-460.0,0.00021917,10]
[376641402,1754068239692,-460.0,0.00021917,10]
[376641403,1754068239701,-175.27722135,0.00021917,10]
[376641404,1754068239718,-284.72277865,0.00021917,10]
[376641405,1754068239731,-460.0,0.00021917,10]
[376641406,1754068239740,-28.94731895,0.00021917,10]
[376641407,1754068239752,-259.79861525,0.00021917,10]
[376641408,1754068239763,-171.2540658,0.00021917,10]
[376641409,1754068239773,-458.18300989,0.00021917,10]
[376641410,1754068239784,-1.81699011,0.00021917,10]
[376641411,1754068239794,-460.0,0.00021917,10]
[376641412,1754068239803,-133.39253007,0.00021917,10]
[376641413,1754068239814,-326.60746993,0.00021917,10]
[376641414,1754068239823,-460.0,0.00021917,10]
[376641415,1754068239832,-460.0,0.00021917,10]
[376641416,1754068239841,-20.8638217,0.00021917,10]
[376641417,1754068239852,-256.24136673,0.00021917,10]
[376641418,1754068239868,-182.89481157,0.00021917,10]
[376641419,1754068239879,-460.0,0.00021917,10]
[376641420,1754068239889,-460.0,0.00021917,10]
[376641421,1754068239898,-258.64900705,0.00021917,10]
[376641422,1754068239910,-201.35099295,0.00021917,10]
[376641423,1754068239920,-327.54609823,0.00021917,10]
[376641424,1754068239932,-158.42183358,0.00021917,10]
[376641425,1754068239941,-460.0,0.00021917,10]
[376641426,1754068239951,-460.0,0.00021917,10]
[376641427,1754068239961,-460.0,0.00021917,10]
[376641428,1754068239972,-460.0,0.00021917,10]
[376641429,1754068239982,-475.02,0.00021917,10]
[376641430,1754068239992,-151.0,0.00021917,2]
[376641431,1754068240001,-415.59073771,0.00021917,10]
[376641432,1754068240011,-151.0,0.00021917,2]
[376641433,1754068240020,-151.0,0.00021917,2]
[376641434,1754068240029,-475.02596355,0.00021917,10]
[376641435,1754068240039,-151.0,0.00021917,2]
[376641436,1754068240049,-151.0,0.00021917,2]
[376641437,1754068240058,-177.789207,0.00021917,2]
[376641438,1754068240067,-151.0,0.00021917,2]
[376641439,1754068240077,-151.0,0.00021917,2]
[376641440,1754068240086,-463.81796763,0.00021917,10]
[376641441,1754068240096,-460.0,0.00021917,10]
[376641443,1754068240105,-460.0,0.00021917,10]
[376641445,1754068240114,-460.0,0.00021917,10]
[376641447,1754068240123,-460.0,0.00021917,10]
[376641449,1754068240132,-938.84,0.00021917,10]
[376641451,1754068240142,-460.0,0.00021917,10]
[376641453,1754068240151,-341.56036563,0.00021917,10]
[376641455,1754068240161,-460.0,0.00021917,10]
[376641457,1754068240170,-460.0,0.00021917,10]
[376641459,1754068240179,-460.0,0.00021917,10]
[376641461,1754068240188,-460.0,0.00021917,10]
[376641463,1754068240198,-469.21307286,0.00021917,10]
[376641465,1754068240207,-460.0,0.00021917,10]
[376641467,1754068240216,-460.0,0.00021917,10]
[376641469,1754068240227,-460.0,0.00021917,10]
[376641471,1754068240236,-370.30558014,0.00021917,10]
[376641477,1754068240277,-89.69441986,0.00021917,10]
[376641479,1754068240287,-460.0,0.00021917,10]
[376641481,1754068240296,-460.0,0.00021917,10]
[376641483,1754068240306,-460.0,0.00021917,10]
[376641496,1754068240317,-151.0,0.00021917,2]
[376641497,1754068240504,-151.0,0.00021917,2]
[376641498,1754068240514,-273.959632,0.00021917,2]
[376641499,1754068240523,-460.0,0.00021917,10]
[376641500,1754068240533,-460.0,0.00021917,10]
[376641501,1754068240543,-460.0,0.00021917,10]
[376641502,1754068240552,-460.0,0.00021917,10]
[376641503,1754068240561,-460.0,0.00021917,10]
[376641504,1754068240570,-460.0,0.00021917,10]
[376641505,1754068240579,-460.0,0.00021917,10]
[376641506,1754068240589,-460.0,0.00021917,10]
[376641507,1754068240598,-151.0,0.00021917,2]
[376641508,1754068240607,-460.0,0.00021917,10]
[376641509,1754068240616,-460.0,0.00021917,10]
[376641510,1754068240625,-460.0,0.00021917,10]
[376641511,1754068240634,-860.54,0.00021917,10]
[376641512,1754068240643,-460.0,0.00021917,10]
[376641513,1754068240652,-460.0,0.00021917,10]
[376641514,1754068240661,-460.0,0.00021917,10]
[376641515,1754068240670,-428.71343209,0.00021917,10]
[376641516,1754068240680,-460.0,0.00021917,10]
[376641517,1754068240689,-460.0,0.00021917,10]
[376641518,1754068240699,-460.0,0.00021917,10]
[376641519,1754068240708,-601.62,0.00021917,10]
[376641520,1754068240718,-463.58872839,0.00021917,7]
[376641521,1754068240732,-3122.74,0.00021917,10]
[376641522,1754068240742,-460.0,0.00021917,10]
[376641523,1754068240752,-601.7,0.00021917,10]
[376641524,1754068240761,-460.0,0.00021917,10]
[376641525,1754068240771,-460.0,0.00021917,10]
[376641526,1754068240781,-460.0,0.00021917,10]
[376641527,1754068240791,-460.0,0.00021917,10]
[376641528,1754068240801,-460.0,0.00021917,10]
[376641529,1754068240810,-485.46,0.00021917,10]
[376641530,1754068240819,-460.0,0.00021917,10]
[376641532,1754068240829,-460.0,0.00021917,10]
[376641534,1754068240838,-460.0,0.00021917,10]
[376641536,1754068240847,-460.0,0.00021917,10]
[376641537,1754068240857,-460.0,0.00021917,10]
[376641538,1754068240866,-460.0,0.00021917,10]
[376641539,1754068240875,-927.4,0.00021917,10]
[376641540,1754068240883,-460.0,0.00021917,10]
[376641541,1754068240892,-1729.97,0.00021917,10]
[376641542,1754068240901,-460.85158182,0.00021917,10]
[376641543,1754068240911,-460.0,0.00021917,10]
[376641544,1754068240919,-460.0,0.00021917,10]
[376641545,1754068240929,-460.0,0.00021917,10]
[376641546,1754068240938,-260.44699037,0.00021917,10]
[376641547,1754068240947,-460.0,0.00021917,10]
[376641548,1754068240956,-460.0,0.00021917,10]
[376641549,1754068240965,-460.0,0.00021917,10]
[376641550,1754068240978,-1269.56,0.00021917,10]
[376641551,1754068240987,-460.0,0.00021917,10]
[376641552,1754068240996,-460.0,0.00021917,10]
[376641553,1754068241005,-460.0,0.00021917,10]
[376641554,1754068241014,-460.0,0.00021917,10]
[376641555,1754068241024,-460.0,0.00021917,10]
[376641556,1754068241033,-460.0,0.00021917,10]
[376641557,1754068241042,-460.0,0.00021917,10]
[376641558,1754068241051,-462.81218085,0.00021917,10]
[376641559,1754068241061,-460.0,0.00021917,10]
[376641560,1754068241070,-674.25,0.00021917,10]
[376641561,1754068241079,-460.0,0.00021917,10]
[376641562,1754068241088,-460.0,0.00021917,10]
[376641563,1754068241097,-460.0,0.00021917,10]
[376641564,1754068241106,-460.0,0.00021917,10]
[376641565,1754068241116,-151.0,0.00021917,2]
[376641566,1754068241125,-460.0,0.00021917,10]
[376641567,1754068241134,-151.0,0.00021917,2]
[376641568,1754068241143,-151.0,0.00021917,2]
[376641569,1754068241152,-151.0,0.00021917,2]
[376641570,1754068241161,-610.26,0.00021917,10]
[376641571,1754068241170,-460.0,0.00021917,10]
[376641572,1754068241179,-861.15,0.00021917,10]
[376641573,1754068241188,-460.0,0.00021917,10]
[376641574,1754068241196,-460.0,0.00021917,10]
[376641575,1754068241206,-1029.23,0.00021917,10]
[376641576,1754068241215,-460.0,0.00021917,10]
[376641577,1754068241224,-460.0,0.00021917,10]
[376641578,1754068241233,-1460.38549855,0.00021917,10]
[376641579,1754068241246,-645.26450145,0.00021917,10]
[376641580,1754068241256,-460.0,0.00021917,10]
[376641581,1754068241265,-460.0,0.00021917,10]
[376641582,1754068241274,-502.16197465,0.00021917,10]
[376641583,1754068241283,-151.0,0.00021917,2]
[376641584,1754068241293,-151.0,0.00021917,2]
[376641585,1754068241302,-305.61871099,0.00021917,10]
[376641586,1754068241313,-1726.05475689,0.00021917,10]
[376641587,1754068241450,-1316.39270049,0.00021917,10]
[376641588,1754068241465,-779.60383163,0.00021917,10]
[376641589,1754068241477,-460.0,0.00021917,10]
[376641590,1754068241486,-460.0,0.00021917,10]
[376641591,1754068241494,-151.92336044,0.00021917,2]
[376641592,1754068241503,-460.0,0.00021917,10]
[376641593,1754068241512,-500.0,0.00021917,2]
[376641594,1754068241522,-526.0,0.00021917,2]
[376641595,1754068241531,-460.0,0.00021917,10]
[376641596,1754068241540,-434.86743427,0.00021917,10]
[376641597,1754068241549,-460.0,0.00021917,10]
[376641598,1754068241558,-524.80829756,0.00021917,10]
[376641599,1754068241567,-460.0,0.00021917,10]
[376641600,1754068241576,-460.0,0.00021917,10]
[376641601,1754068241586,-151.0,0.00021917,2]
[376641602,1754068241595,-460.0,0.00021917,10]
[376641603,1754068241605,-460.0,0.00021917,10]
[376641604,1754068241615,-381.90173859,0.00021917,10]
[376641605,1754068241624,-500.0,0.00021917,2]
[376641606,1754068241633,-333.61809678,0.00021917,10]
[376641607,1754068241642,-460.0,0.00021917,10]
[376641608,1754068241651,-460.0,0.00021917,10]
[376641609,1754068241661,-2516.17,0.00021917,10]
[376641610,1754068241670,-1192.96,0.00021917,10]
[376641611,1754068241679,-151.0,0.00021917,2]
[376641612,1754068241688,-460.0,0.00021917,10]
[376641613,1754068241697,-460.0,0.00021917,10]
[376641614,1754068241707,-460.0,0.00021917,10]
[376641615,1754068241716,-460.0,0.00021917,10]
[376641616,1754068241726,-460.0,0.00021917,10]
[376641617,1754068241736,-500.0,0.00021917,10]
[376641618,1754068241747,-460.0,0.00021917,10]
[376641619,1754068241757,-151.60995757,0.00021917,2]
[376641620,1754068241766,-2111.23,0.00021917,10]
[376641621,1754068241775,-151.0,0.00021917,2]
[376641622,1754068241785,-108.09356238,0.00021917,10]
[376641623,1754068241800,-299.27786536,0.00021917,10]
[376641624,1754068241810,-760.54,0.00021917,10]
[376641625,1754068241819,-152.41842028,0.00021917,2]
[376641626,1754068241828,-650.89,0.00021917,10]
[376641627,1754068241837,-460.0,0.00021917,10]
[376641628,1754068241847,-500.0,0.00021917,2]
[376641629,1754068241856,-249.764857,0.00021917,2]
[376641630,1754068241865,-460.0,0.00021917,10]
[376641631,1754068241875,-249.764857,0.00021917,2]
[376641632,1754068241884,-249.764857,0.00021917,2]
[376641633,1754068241893,-249.764857,0.00021917,2]
[376641634,1754068241903,-578.26,0.00021917,10]
[376641635,1754068241912,-460.0,0.00021917,10]
[376641636,1754068241921,-924.04,0.00021917,10]
[376641637,1754068241930,-249.764857,0.00021917,2]
[376641638,1754068241939,-1676.85502987,0.00021917,10]
[376641639,1754068241953,-10958.03458944,0.00021917,10]
[376641640,1754068241962,-249.764857,0.00021917,2]
[376641641,1754068241971,-249.764857,0.00021917,2]
[376641642,1754068241982,-249.764857,0.00021917,2]
[376641643,1754068241991,-460.0,0.00021917,10]
[376641644,1754068242000,-460.0,0.00021917,10]
[376641645,1754068242010,-37.06416689,0.00021917,10]
[376641646,1754068242025,-422.93583311,0.00021917,10]
[376641647,1754068242034,-616.4,0.00021917,10]
[376641648,1754068242043,-151.562949,0.00021917,2]
[376641649,1754068242052,-460.0,0.00021917,10]
[376641650,1754068242061,-1027.45,0.00021917,10]
[376641651,1754068242070,-460.0,0.00021917,10]
[376641652,1754068242079,-679.41,0.00021917,10]
[376641653,1754068242088,-8075.61,0.00021917,10]
[376641654,1754068242098,-460.0,0.00021917,10]
[376641655,1754068242107,-460.0,0.00021917,10]
[376641656,1754068242116,-460.0,0.00021917,10]
[376641657,1754068242125,-460.0,0.00021917,10]
[376641658,1754068242134,-787.2,0.00021917,10]
[376641659,1754068242143,-151.0,0.00021917,2]
[376641660,1754068242152,-183.42788314,0.00021917,10]
[376641661,1754068242161,-460.0,0.00021917,10]
[376641662,1754068242170,-370.45227765,0.00021917,10]
[376641663,1754068242180,-151.0,0.00021917,2]
[376641664,1754068242189,-500.0,0.00021917,2]
[376641665,1754068242198,-1131.04,0.00021917,10]
[376641666,1754068242207,-151.0,0.00021917,2]
[376641667,1754068242216,-151.0,0.00021917,2]
[376641668,1754068242227,-151.0,0.00021917,2]
[376641669,1754068242236,-544.85,0.00021917,10]
[376641670,1754068242245,-460.0,0.00021917,10]
[376641671,1754068242254,-460.0,0.00021917,10]
[376641672,1754068242263,-1043.4,0.00021917,10]
[376641673,1754068242272,-151.0,0.00021917,2]
[376641674,1754068242281,-166.95873073,0.00021917,2]
[376641675,1754068242290,-262.29962447,0.00021917,10]
[376641676,1754068242299,-460.0,0.00021917,10]
[376641677,1754068242308,-151.0,0.00021917,2]
[376641678,1754068242321,-151.0,0.00021917,2]
[376641679,1754068242330,-151.0,0.00021917,2]
[376641680,1754068242338,-151.0,0.00021917,2]
[376641681,1754068242347,-460.0,0.00021917,10]
[376641682,1754068242357,-164.422613,0.00021917,2]
[376641683,1754068242366,-460.0,0.00021917,10]
[376641684,1754068242375,-305.8984454,0.00021917,10]
[376641685,1754068242385,-272.90693841,0.00021917,2]
[376641686,1754068242395,-500.0,0.00021917,2]
[376641687,1754068242404,-460.0,0.00021917,10]
[376641688,1754068242413,-460.0,0.00021917,10]
[376641689,1754068242422,-1271.07,0.00021917,10]
[376641690,1754068242431,-225.5507694,0.00021917,2]
[376641691,1754068242440,-460.0,0.00021917,10]
[376641692,1754068242449,-460.0,0.00021917,10]
[376641693,1754068242458,-460.0,0.00021917,10]
[376641694,1754068242467,-504.72,0.00021917,10]
[376641695,1754068242479,-460.0,0.00021917,10]
[376641696,1754068242488,-460.0,0.00021917,10]
[376641697,1754068242497,-462.16852898,0.00021917,10]
[376641698,1754068242506,-1640.44,0.00021917,10]
[376641699,1754068242516,-460.0,0.00021917,10]
[376641700,1754068242525,-460.0,0.00021917,10]
[376641701,1754068242534,-183.79375977,0.00021917,10]
[376641702,1754068242543,-501.56,0.00021917,10]
[376641703,1754068242552,-626.29,0.00021917,10]
[376641704,1754068242562,-460.0,0.00021917,10]
[376641705,1754068242571,-460.0,0.00021917,10]
[376641706,1754068242580,-460.0,0.00021917,10]
[376641707,1754068242589,-584.86549972,0.00021917,10]
[376641708,1754068242604,-1113.79450028,0.00021917,10]
[376641709,1754068242613,-213.59504052,0.00021917,10]
[376641710,1754068242623,-460.0,0.00021917,10]
[376641711,1754068242632,-460.0,0.00021917,10]
[376641712,1754068242641,-460.0,0.00021917,10]
[376641713,1754068242650,-3507.82,0.00021917,10]
[376641714,1754068242660,-552.07,0.00021917,10]
[376641716,1754068242670,-460.0,0.00021917,10]
[376641717,1754068242679,-3707.1,0.00021917,10]
[376641719,1754068242689,-1237.25,0.00021917,10]
[376641720,1754068242698,-1938.66,0.00021917,10]
[376641721,1754068242707,-460.0,0.00021917,10]
[376641722,1754068242718,-460.0,0.00021917,10]
[376641723,1754068242728,-460.0,0.00021917,10]
[376641724,1754068242737,-829.38,0.00021917,10]
[376641725,1754068242746,-460.0,0.00021917,10]
[376641726,1754068242756,-460.0,0.00021917,10]
[376641728,1754068242766,-460.0,0.00021917,10]
[376641729,1754068242775,-1462.66,0.00021917,10]
[376641731,1754068242785,-460.0,0.00021917,10]
[376641732,1754068242794,-460.0,0.00021917,10]
[376641733,1754068242803,-460.0,0.00021917,10]
[376641734,1754068242813,-460.0,0.00021917,10]
[376641735,1754068242822,-436.50300604,0.00021917,10]
[376641736,1754068242832,-460.0,0.00021917,10]
[376641737,1754068242841,-580.46,0.00021917,10]
[376641738,1754068242850,-4580.92553598,0.00021917,10]
[376641739,1754068243134,-1335.59446402,0.00021917,10]
[376641740,1754068243144,-409.7739814,0.00021917,10]
[376641741,1754068243188,-50.2260186,0.00021917,10]
[376641742,1754068243197,-779.87,0.00021917,10]
[376641743,1754068243207,-460.0,0.00021917,10]
[376641744,1754068243216,-647.59,0.00021917,10]
[376641745,1754068243227,-546.87,0.00021917,10]
[376641746,1754068243236,-999.29,0.00021917,10]
[376641747,1754068243246,-460.0,0.00021917,10]
[376641748,1754068243255,-460.0,0.00021917,10]
[376641749,1754068243264,-476.07,0.00021917,10]
[376641750,1754068243273,-460.0,0.00021917,10]
[376641751,1754068243283,-460.0,0.00021917,10]
[376641752,1754068243292,-1413.21,0.00021917,10]
[376641753,1754068243302,-1290.46,0.00021917,10]
[376641754,1754068243311,-1246.18,0.00021917,10]
[376641755,1754068243323,-460.0,0.00021917,10]
[376641756,1754068243332,-569.69,0.00021917,10]
[376641757,1754068243341,-904.07,0.00021917,10]
[376641758,1754068243351,-1293.43,0.00021917,10]
[376641759,1754068243360,-2459.26,0.00021917,10]
[376641760,1754068243370,-1037.75,0.00021917,10]
[376641761,1754068243380,-460.0,0.00021917,10]
[376641762,1754068243389,-460.0,0.00021917,10]
[376641763,1754068243399,-460.0,0.00021917,10]
[376641764,1754068243408,-1092.81,0.00021917,10]
[376641765,1754068243418,-460.0,0.00021917,10]
[376641766,1754068243427,-399.24365653,0.00021917,10]
[376641767,1754068243436,-460.0,0.00021917,10]
[376641768,1754068243445,-691.16,0.00021917,10]
[376641769,1754068243455,-460.0,0.00021917,10]
[376641770,1754068243464,-4121.78,0.00021917,10]
[376641771,1754068243473,-460.0,0.00021917,10]
[376641772,1754068243485,-312.16666667,0.00021917,10]
[376641773,1754068243494,-868.61,0.00021917,10]
[376641774,1754068243504,-460.0,0.00021917,10]
[376641775,1754068243513,-460.0,0.00021917,10]
[376641776,1754068243522,-460.0,0.00021917,10]
[376641777,1754068243531,-460.0,0.00021917,10]
[376641778,1754068243540,-588.25,0.00021917,10]
[376641779,1754068243549,-460.0,0.00021917,10]
[376641780,1754068243559,-460.0,0.00021917,10]
[376641781,1754068243568,-203.96257726,0.00021917,10]
[376641782,1754068243577,-460.0,0.00021917,10]
[376641783,1754068243587,-460.0,0.00021917,10]
[376641784,1754068243595,-460.0,0.00021917,10]
[376641785,1754068243604,-460.0,0.00021917,10]
[376641786,1754068243614,-470.72,0.00021917,10]
[376641787,1754068243623,-460.0,0.00021917,10]
[376641788,1754068243633,-460.0,0.00021917,10]
[376641789,1754068243642,-654.92,0.00021917,10]
[376641790,1754068243651,-460.0,0.00021917,10]
[376641791,1754068243660,-171.55857309,0.00021917,10]
[376641792,1754068243670,-460.0,0.00021917,10]
[376641793,1754068243679,-460.0,0.00021917,10]
[376641794,1754068243689,-460.0,0.00021917,10]
[376641795,1754068243698,-460.0,0.00021917,10]
[376641796,1754068243708,-460.0,0.00021917,10]
[376641797,1754068243717,-462.73118339,0.00021917,10]
[376641798,1754068243729,-460.0,0.00021917,10]
[376641799,1754068243740,-460.0,0.00021917,10]
[376641800,1754068243749,-1250.19,0.00021917,10]
[376641801,1754068243759,-460.0,0.00021917,10]
[376641802,1754068243768,-460.0,0.00021917,10]
[376641803,1754068243777,-617.87,0.00021917,10]
[376641804,1754068243787,-460.0,0.00021917,10]
[376641805,1754068243797,-4751.78,0.00021917,10]
[376641806,1754068243806,-151.0,0.00021917,2]
[376641807,1754068243815,-460.0,0.00021917,10]
[376641808,1754068243825,-582.75,0.00021917,10]
[376641809,1754068243834,-8307.07,0.00021917,10]
[376641810,1754068243843,-540.55,0.00021917,10]
[376641811,1754068243852,-151.0,0.00021917,2]
[376641812,1754068243861,-1550.46,0.00021917,10]
[376641813,1754068243870,-460.0,0.00021917,10]
[376641814,1754068243879,-460.97223986,0.00021917,10]
[376641815,1754068243888,-460.0,0.00021917,10]
[376641816,1754068243897,-1060.84,0.00021917,10]
[376641817,1754068243906,-460.0,0.00021917,10]
[376641818,1754068243915,-460.0,0.00021917,10]
[376641819,1754068243924,-460.0,0.00021917,10]
[376641820,1754068243933,-460.0,0.00021917,10]
[376641821,1754068243942,-586.82,0.00021917,10]
[376641822,1754068243951,-2410.29,0.00021917,10]
[376641823,1754068243960,-460.0,0.00021917,10]
[376641824,1754068243969,-460.0,0.00021917,10]
[376641825,1754068243980,-460.0,0.00021917,10]
[376641826,1754068243989,-404.21185485,0.0002196,2]
[376641827,1754068243999,-500.0,0.00021973,2]
[376641828,1754068244008,-500.0,0.00021973,2]
[376641829,1754068244148,-500.0,0.00021973,2]
[376641830,1754068244158,-500.0,0.00021973,2]
[376641831,1754068244168,-500.0,0.00021973,2]
[376641832,1754068244177,-422.97070679,0.00021973,2]
[376641833,1754068244186,-404.21185485,0.00022104,2]
[376641834,1754068244195,-206.46855406,0.00022114,6]
[376641835,1754068244206,-468.45967089,0.00022172,2]
[376641836,1754068244215,-150.0,0.00022173,2]
[376641837,1754068244226,-500.0,0.00022173,2]
[376641838,1754068244236,-500.0,0.00022173,2]
[376641839,1754068244245,-604.89858281,0.00022173,2]
[376641840,1754068244255,-501.72606197,0.00022173,2]
[376641841,1754068244264,-164.52036037,0.00022173,2]
[376641842,1754068244274,-500.0,0.00022173,2]
[376641843,1754068244283,-500.0,0.00022173,2]
[376641844,1754068244292,-500.0,0.00022173,2]
[376641845,1754068244301,-500.0,0.00022173,2]
[376641846,1754068244310,-500.0,0.00022173,2]
[376641847,1754068244320,-559.30586738,0.00022173,2]
[376641848,1754068244332,-575.7063143,0.00022173,2]
[376641849,1754068244342,-500.0,0.00022173,2]
[376641850,1754068244351,-500.0,0.00022173,2]
[376641851,1754068244362,-500.0,0.00022173,2]
[376641852,1754068244371,-500.0,0.00022173,2]
[376641853,1754068244380,-500.0,0.00022173,2]
[376641854,1754068244389,-151.0,0.00022173,7]
[376641855,1754068244400,-151.0,0.0002219,7]
[376641856,1754068244410,-171.46,0.0002219,2]
[376641857,1754068244419,-152.1008972,0.00022191,2]
[376641858,1754068244428,-153.04704999,0.00022191,2]
[376641859,1754068244437,-500.0,0.00022191,2]
[376641860,1754068244447,-526.0,0.00022191,2]
[376641861,1754068244455,-151.0,0.00022191,2]
[376641862,1754068244464,-500.0,0.00022191,2]
[376641863,1754068244474,-264.8087861,0.00022191,2]
[376641864,1754068244485,-151.0,0.00022191,2]
[376641865,1754068244496,-500.0,0.00022191,2]
[376641866,1754068244505,-500.0,0.00022191,2]
[376641867,1754068244515,-151.0,0.00022191,2]
[376641868,1754068244524,-342.29200879,0.00022191,2]
[376641869,1754068244538,-157.70799121,0.00022191,2]
[376641870,1754068244547,-2097.27,0.00022191,10]
[376641871,1754068244557,-151.0,0.00022191,7]
[376641872,1754068244567,-151.0,0.00022191,7]
[376641873,1754068244577,-151.0,0.00022191,7]
[376641874,1754068244587,-151.0,0.00022191,7]
[376641875,1754068244596,-151.0,0.00022191,7]
[376641876,1754068244605,-151.0,0.00022191,7]
[376641877,1754068244615,-151.0,0.00022191,7]
[376641878,1754068244624,-151.0,0.00022191,7]
[376641879,1754068244634,-151.0,0.00022191,7]
[376641880,1754068244643,-151.0,0.00022191,7]
[376641881,1754068244653,-151.0,0.00022191,7]
[376641882,1754068244663,-151.0,0.00022191,7]
[376641883,1754068244672,-151.0,0.00022191,7]
[376641884,1754068244682,-151.0,0.00022191,7]
[376641885,1754068244691,-151.0,0.00022191,7]
[376641886,1754068244701,-151.0,0.00022191,7]
[376641887,1754068244711,-151.0,0.00022191,10]
[376641888,1754068244720,-460.0,0.00022191,10]
[376641889,1754068244731,-460.0,0.00022191,10]
[376641890,1754068244740,-460.0,0.00022191,10]
[376641891,1754068244750,-288.9683301,0.00022191,10]
[376641892,1754068244762,-171.0316699,0.00022191,10]
[376641893,1754068244772,-199.04713453,0.00022191,10]
[376641894,1754068244781,-460.0,0.00022191,10]
[376641895,1754068244790,-151.0,0.00022191,10]
[376641896,1754068244799,-468.27143303,0.00022191,10]
[376641897,1754068244809,-151.0,0.00022191,10]
[376641898,1754068244819,-151.0,0.00022191,10]
[376641899,1754068244828,-151.0,0.00022191,10]
[376641900,1754068244837,-447.91343147,0.00022191,10]
[376641901,1754068244846,-460.0,0.00022191,10]
[376641902,1754068244855,-440.85262255,0.00022191,10]
[376641903,1754068244866,-460.0,0.00022191,10]
[376641904,1754068244875,-460.0,0.00022191,10]
[376641905,1754068244884,-460.0,0.00022191,10]
[376641906,1754068244894,-303.988961,0.00022191,7]
[376641907,1754068244904,-460.0,0.00022191,10]
[376641908,1754068244913,-460.0,0.00022191,10]
[376641909,1754068244923,-303.988961,0.00022191,7]
[376641910,1754068244932,-460.0,0.00022191,10]
[376641911,1754068244942,-460.0,0.00022191,10]
[376641912,1754068244951,-460.0,0.00022191,10]
[376641913,1754068244960,-460.0,0.00022191,10]
[376641914,1754068244969,-584.61,0.00022191,10]
[376641915,1754068244982,-460.0,0.00022191,10]
[376641916,1754068244991,-460.0,0.00022191,10]
[376641917,1754068245001,-612.36,0.00022191,10]
[376641918,1754068245011,-460.0,0.00022191,10]
[376641919,1754068245020,-460.0,0.00022191,10]
[376641920,1754068245029,-460.0,0.00022191,10]